Cogmind - Beta 12 @@@ ROGUE MODE // 2023.05.11 @ 23:48:10 Player: Mr Goldstein Result: Destroyed by MAIN.C with High-powered Disruptor Cannon Performance ------------- Evolutions (9) 4500 Regions Visited (23) 4600 Robots Destroyed (14) 70 Value Destroyed (518) 518 Prototype IDs (35) 700 Alien Tech Used (2) 400 Bonus (11122) 11122 TOTAL SCORE: 21910 Bonus ------- High Alert Combat Kills 22 Entered DSFs 500 Aligned with FarCom 300 Met Zhirov 300 Met Warlord at Base 500 MAIN.C Attacked Warlord 500 Met Warlord at Research 2000 Met MAIN.C 5000 Met Warlord at Command 2000 Cogmind --------- Core Integrity 0/1600 Matter 234/300 Energy 100/100 System Corruption 15% Temperature Cool (18) Movement Core (50) Location -1/Command Parts ------- > --- POWER (1) -------- (None) > --- PROPULSION (11) -- (None) > --- UTILITY (11) ----- Experimental Armor Integrity Analyzer Improved Hacking Suite Improved Hacking Suite Improved Hacking Suite Advanced Hacking Suite > --- WEAPON (2) ------- (None) > --- INVENTORY (5) ---- Light Quantum Reactor Light Quantum Reactor Light Quantum Reactor Advanced Hacking Suite Peak State ------------ > --- POWER ------------ Particle Reactor > --- PROPULSION ------- Xenon Bombardment Thruster Xenon Bombardment Thruster Field Propulsion Drive Cooled Nuclear Pulse Thruster Cooled Nuclear Pulse Thruster Impulse Thruster Cooled Field Propulsion Drive Electron Diverter Electron Diverter Impulse Thruster Array > --- UTILITY ---------- Advanced Power Amplifier Experimental Armor Integrity Analyzer Experimental Cloaking Device Improved Hacking Suite Improved Hacking Suite Improved Hacking Suite Improved Hacking Suite Advanced Hacking Suite System Shield Advanced System Shield > --- WEAPON ----------- Backup Laser III Vortex Rifle > --- INVENTORY -------- Particle Reactor Improved Hacking Suite Advanced Hacking Suite Transdimensional Reconstructor Improved Proton Missile Launcher [Rating: 161] Favorites ----------- Power Light Angular Momentum Engine Engine Light Angular Momentum Engine Reactor Micro Antimatter Reactor Propulsion Cooled Nuclear Pulse Thruster Treads Light Treads Flight Unit Cooled Nuclear Pulse Thruster Utility Improved Hacking Suite Device Experimental Cloaking Device Processor Experimental Armor Integrity Analyzer Hackware Improved Hacking Suite Protection Improved Propulsion Shielding Weapon Heavy Mace Energy Gun Backup Laser III Ballistic Gun Heavy Machine Gun Launcher Improved Proton Missile Launcher Impact Weapon Heavy Mace Build | -11 -10 -9 -9 -9 -8 -8 -7 -7 -6 -5 -5 -5 -5 -4 -4 -4 -4 -4 -3 -3 -2 -1 -1 ------- Run | Jun Mat Mat Min Exi Min Mat Fac DSF Fac Fac Upp Upp Zhi Pro Fac Upp Upp War Pro Res Res Acc Com Slots Evolved 18 | . . 2 . . . 2 2 . 2 2 . . . . 2 . . . . 2 2 2 . Power . | . . . . . . . . . . . . . . . . . . . . . . . . Propulsion 9 | . . 2 . . . 1 . . 1 1 . . . . 1 . . . . 1 1 1 . Utility 9 | . . . . . . 1 2 . 1 1 . . . . 1 . . . . 1 1 1 . Weapon . | . . . . . . . . . . . . . . . . . . . . . . . . Parts Attached 89 | 2 3 . . 3 . 6 . 7 3 2 1 . 4 2 1 . . 9 . 4 9 2 31 Power 10 | . . . . . . . . . 1 . . . . 1 . . . . . 1 1 . 6 Engine 3 | . . . . . . . . . 1 . . . . 1 . . . . . 1 . . . Core . | . . . . . . . . . . . . . . . . . . . . . . . . Reactor 7 | . . . . . . . . . . . . . . . . . . . . . 1 . 6 Propulsion 41 | 2 . . . 2 . 3 . 2 2 1 . . 2 1 . . . 2 . 2 3 2 17 Treads 2 | 2 . . . . . . . . . . . . . . . . . . . . . . . Leg . | . . . . . . . . . . . . . . . . . . . . . . . . Wheel . | . . . . . . . . . . . . . . . . . . . . . . . . Hover . | . . . . . . . . . . . . . . . . . . . . . . . . Flight 39 | . . . . 2 . 3 . 2 2 1 . . 2 1 . . . 2 . 2 3 2 17 Utility 26 | . 1 . . 1 . 2 . 5 . . . . 2 . 1 . . 5 . 1 5 . 3 Device 9 | . . . . 1 . 1 . . . . . . 2 . . . . 3 . . 2 . . Storage . | . . . . . . . . . . . . . . . . . . . . . . . . Processor 2 | . . . . . . . . . . . . . . . . . . 1 . . . . 1 Hackware 12 | . . . . . . 1 . 4 . . . . . . 1 . . . . 1 3 . 2 Protection 3 | . 1 . . . . . . 1 . . . . . . . . . 1 . . . . . Artifact . | . . . . . . . . . . . . . . . . . . . . . . . . Weapon 12 | . 2 . . . . 1 . . . 1 1 . . . . . . 2 . . . . 5 Energy Gun 2 | . . . . . . . . . . . . . . . . . . 2 . . . . . Energy Cannon . | . . . . . . . . . . . . . . . . . . . . . . . . Ballistic Gun 1 | . . . . . . . . . . . . . . . . . . . . . . . 1 Ballistic Cannon . | . . . . . . . . . . . . . . . . . . . . . . . . Launcher 8 | . 2 . . . . . . . . 1 1 . . . . . . . . . . . 4 Special Weapon . | . . . . . . . . . . . . . . . . . . . . . . . . Impact Weapon 1 | . . . . . . 1 . . . . . . . . . . . . . . . . . Slashing Weapon . | . . . . . . . . . . . . . . . . . . . . . . . . Piercing Weapon . | . . . . . . . . . . . . . . . . . . . . . . . . Special Melee Weapon . | . . . . . . . . . . . . . . . . . . . . . . . . Unidentified Prototypes 14 | . . . . . . 1 . . . . . . 3 . . . . 6 . 1 1 . 2 Corrupted Parts 2 | . . . . . . . . . . . . . . . . . . . . . . . 2 System Corruption 2 | . . . . . . . . . . . . . . . . . . . . . . . 2 Parts Lost 58 | . . . 1 . . . . 4 . . 1 . . 5 2 . . . . 1 3 . 41 Power 6 | . . . . . . . . . . . . . . 1 . . . . . 1 . . 4 Propulsion 32 | . . . . . . . . 3 . . 1 . . 2 1 . . . . . 1 . 24 Utility 14 | . . . 1 . . . . 1 . . . . . 2 . . . . . . 2 . 8 Weapon 6 | . . . . . . . . . . . . . . . 1 . . . . . . . 5 Highest Loss Streak 17 | . . . 1 . . . . 4 . . 1 . . 5 2 . . . . 1 2 . 17 To Critical Strikes . | . . . . . . . . . . . . . . . . . . . . . . . . Average Slot Usage (%) 60 | . 35 33 23 19 11 20 . 34 66 64 67 64 71 68 57 52 52 61 89 88 83 91 69 Engine 1 | . . . . . . . . . 4 5 5 5 5 5 5 5 5 5 5 3 . . . Reactor 1 | . . . . . . . . . . . . . . . . . . . . . 3 4 2 Treads 2 | . 28 22 22 12 . . . . . . . . . . . . . . . . . . . Flight 22 | . . . . 2 . 7 . 16 21 23 25 23 28 31 25 21 21 23 31 32 30 39 26 Device 4 | . . . . 5 11 4 . . . . . . 1 5 5 5 5 6 10 9 8 8 4 Processor 2 | . . . . . . . . . . . . . . . . . . 1 5 4 4 4 5 Hackware 20 | . . . . . . 5 . 6 26 23 23 23 23 17 15 21 21 21 21 23 24 28 29 Protection 1 | . 4 11 1 . . . . 3 6 5 5 5 5 . . . . 1 5 4 2 . . Energy Gun 1 | . . . . . . . . . . . . . . . . . . 3 10 9 8 8 . Impact Weapon 1 | . . . . . . 3 . 7 6 5 5 5 5 5 5 . . . . . . . . Naked Turns 4 | . . . . 2 . 2 . . . . . . . . . . . . . . . . . Heaviest Build 40 | . 3 3 3 2 2 3 3 5 15 15 15 15 18 18 15 12 12 31 31 35 40 32 32 Greatest Support 80 | 40 3 3 3 3 3 15 15 15 16 29 29 25 37 43 35 31 31 47 47 64 69 58 80 Greatest Overweight (x) 1 | . . . . . . . . 1 . . . . . . . . . . . . . . . Average Overweight (x) . | . . . . . . . . . . . . . . . . . . . . . . . . Largest Inventory Capacity 5 | 5 5 5 5 5 5 5 5 5 5 5 5 5 5 5 5 5 5 5 5 5 5 5 5 Average Capacity 5 | 5 5 5 5 5 5 5 5 5 5 5 5 5 5 5 5 5 5 5 5 5 5 5 5 Most Carried 5 | . 5 5 5 5 5 5 5 5 3 3 3 3 5 5 3 4 4 5 5 5 5 5 5 Average Carried 4 | . 3 5 5 4 5 5 5 4 2 2 2 3 4 3 3 3 4 4 5 4 4 4 4 Final Capacity 5 | 5 5 5 5 5 5 5 5 5 5 5 5 5 5 5 5 5 5 5 5 5 5 5 5 Final Carried 5 | . 5 5 5 5 5 5 5 3 3 3 3 3 5 3 3 4 4 5 5 5 4 5 4 Class Distribution -------------------- 37% | Hacker-Sprinter 33% | Wizard-Sprinter 17% | Mutant 4% | Wizard-Mutant 4% | Hacker-Mutant 3% | Sprinter Dominant Class ---------------- Mutant | -10/Materials Mutant | -9/Materials Mutant | -9/Mines Mutant | -9/Exiles Mutant | -8/Mines Mutant | -8/Materials Mutant | -7/Factory Mutant | -7/DSF Mutant | -6/Factory Hacker-Sprinter | -5/Factory Hacker-Sprinter | -5/Upper Caves Hacker-Sprinter | -5/Upper Caves Hacker-Sprinter | -5/Zhirov Hacker-Sprinter | -4/Proximity Caves Hacker-Sprinter | -4/Factory Hacker-Sprinter | -4/Upper Caves Hacker-Sprinter | -4/Upper Caves Hacker-Sprinter | -4/Warlord Hacker-Sprinter | -3/Proximity Caves Hacker-Sprinter | -3/Research Wizard-Sprinter | -2/Research Wizard-Sprinter | -1/Access Wizard-Sprinter | -1/Command Resources | -11 -10 -9 -9 -9 -8 -8 -7 -7 -6 -5 -5 -5 -5 -4 -4 -4 -4 -4 -3 -3 -2 -1 -1 ----------- Run | Jun Mat Mat Min Exi Min Mat Fac DSF Fac Fac Upp Upp Zhi Pro Fac Upp Upp War Pro Res Res Acc Com Matter Collected 994 | 220 . . . . . . . 5 . . 133 20 113 . . 15 . . . 85 154 . 249 Remotely . | . . . . . . . . . . . . . . . . . . . . . . . . Salvage Created 402 | . 32 . . . . . . . . . 126 . 113 . . . . . . . 90 . 41 Parts 17 | . 8 . . . . . . . . . 3 . . . . . . . . . 2 . 4 Haulers Intercepted . | . . . . . . . . . . . . . . . . . . . . . . . . Recyclers Shooed . | . . . . . . . . . . . . . . . . . . . . . . . . Parts Field Recycled . | . . . . . . . . . . . . . . . . . . . . . . . . Retrieved Matter . | . . . . . . . . . . . . . . . . . . . . . . . . Parts Self-Destructed . | . . . . . . . . . . . . . . . . . . . . . . . . Prevented 2 | . . . . . . . . . . . 2 . . . . . . . . . . . . Kills | -11 -10 -9 -9 -9 -8 -8 -7 -7 -6 -5 -5 -5 -5 -4 -4 -4 -4 -4 -3 -3 -2 -1 -1 ------- Run | Jun Mat Mat Min Exi Min Mat Fac DSF Fac Fac Upp Upp Zhi Pro Fac Upp Upp War Pro Res Res Acc Com Combat Hostiles Destroyed 10 | . 6 . . . . . . . . . 3 . . . . . . . . . 1 . . Guns 1 | . . . . . . . . . . . . . . . . . . . . . 1 . . AOE 9 | . 6 . . . . . . . . . 3 . . . . . . . . . . . . Classes Destroyed 5 | . 2 . . . . . . . . . 1 . . . . . . . . . 1 . 1 Worker 3 | . 1 . . . . . . . . . . . . . . . . . . . . . 2 Watcher 1 | . . . . . . . . . . . . . . . . . . . . . . . 1 Swarmer 9 | . 6 . . . . . . . . . 3 . . . . . . . . . . . . Behemoth 1 | . . . . . . . . . . . . . . . . . . . . . 1 . . Decomposer 1 | . . . . . . . . . . . 1 . . . . . . . . . . . . Samaritan 1 | . . . . . . . . . . . 1 . . . . . . . . . . . . Best Kill Streak 4 | . 4 . . . . . . . . . 3 . . . . . . . . . 1 . 1 Combat Bots Only 3 | . 3 . . . . . . . . . 3 . . . . . . . . . 1 . . Max Kills in Single Turn 2 | . 2 . . . . . . . . . 2 . . . . . . . . . 1 . 1 Gunslinging . | . . . . . . . . . . . . . . . . . . . . . . . . Exploded 2 | . 2 . . . . . . . . . 2 . . . . . . . . . . . . Melee . | . . . . . . . . . . . . . . . . . . . . . . . . Uniques/NPCs Destroyed . | . . . . . . . . . . . . . . . . . . . . . . . . Combat | -11 -10 -9 -9 -9 -8 -8 -7 -7 -6 -5 -5 -5 -5 -4 -4 -4 -4 -4 -3 -3 -2 -1 -1 -------- Run | Jun Mat Mat Min Exi Min Mat Fac DSF Fac Fac Upp Upp Zhi Pro Fac Upp Upp War Pro Res Res Acc Com Damage Taken 6387 | 3 138 36 170 . 5 576 . 382 . . 264 . . 180 175 . 132 . 112 52 352 89 3721 Core 2568 | . 48 6 57 . . 451 . 253 . . 57 . . 32 29 . 81 . . . 20 25 1509 Absorbed by Shields 92 | . . . . . . . . 92 . . . . . . . . . . . . . . . Redirected to Shielding 100 | . . . . . . . . . . . 76 . . 24 . . . . . . . . . Regen/Repaired (Parts) 26 | . . . . . . . . . . . . . . . . . . 26 . . . . . Core Remaining (%) 82 | 100 80 . . . 84 18 . 63 100 . . . . 91 . . . . 90 100 98 . . Volleys Fired 33 | . 5 . . . . . . . . . 5 . . . . . . 7 . . 4 . 12 Largest 1 | . 1 . . . . . . . . . 1 . . . . . . 1 . . 1 . 1 Hottest 52 | . 30 . . . . . . . . . 43 . . . . . . 40 . . 40 . 52 Shots Fired 33 | . 5 . . . . . . . . . 5 . . . . . . 7 . . 4 . 12 Gun 13 | . . . . . . . . . . . . . . . . . . 7 . . 4 . 2 Cannon . | . . . . . . . . . . . . . . . . . . . . . . . . Launcher 20 | . 5 . . . . . . . . . 5 . . . . . . . . . . . 10 Special . | . . . . . . . . . . . . . . . . . . . . . . . . Kinetic 2 | . . . . . . . . . . . . . . . . . . . . . . . 2 Thermal . | . . . . . . . . . . . . . . . . . . . . . . . . Explosive 11 | . 5 . . . . . . . . . . . . . . . . . . . . . 6 Electromagnetic 9 | . . . . . . . . . . . 5 . . . . . . . . . . . 4 Entropic 11 | . . . . . . . . . . . . . . . . . . 7 . . 4 . . Robot Hit Streak 4 | . 1 . . . . . . . . . 4 . . . . . . . . . 2 . . Robot Miss Streak 1 | . . . . . . . . . . . 1 . . . . . . . . . . . 1 Penetration Max . | . . . . . . . . . . . . . . . . . . . . . . . . Secondary Targets . | . . . . . . . . . . . . . . . . . . . . . . . . Shots Hit Robots 9 | . 1 . . . . . . . . . 6 . 1 . . . . . . . 1 . . Core Hits 22 | . 9 . . . . . . . . . 4 . . . . . . . . . 1 . 8 Critical Kills . | . . . . . . . . . . . . . . . . . . . . . . . . Critical Parts Destroyed 1 | . . . . . . . . . . . . . 1 . . . . . . . . . . Critical Strikes 1 | . . . . . . . . . . . . . 1 . . . . . . . . . . Smash 1 | . . . . . . . . . . . . . 1 . . . . . . . . . . Melee Attacks 10 | . . . . . . . . . . 1 2 . 1 4 2 . . . . . . . . Impact 10 | . . . . . . . . . . 1 2 . 1 4 2 . . . . . . . . Slashing . | . . . . . . . . . . . . . . . . . . . . . . . . Piercing . | . . . . . . . . . . . . . . . . . . . . . . . . Sneak Attacks 2 | . . . . . . . . . . . 2 . . . . . . . . . . . . Combat Hostiles . | . . . . . . . . . . . . . . . . . . . . . . . . Follow-up Attacks . | . . . . . . . . . . . . . . . . . . . . . . . . Damage Inflicted 1347 | 6 376 . 15 . 11 . . . . . 494 . 110 . . . . . . . 55 . 280 Guns 55 | . . . . . . . . . . . . . . . . . . . . . 55 . . Cannons . | . . . . . . . . . . . . . . . . . . . . . . . . Explosions 899 | . 376 . . . . . . . . . 243 . . . . . . . . . . . 280 Melee 361 | . . . . . . . . . . . 251 . 110 . . . . . . . . . . Ramming 32 | 6 . . 15 . 11 . . . . . . . . . . . . . . . . . . Kinetic . | . . . . . . . . . . . . . . . . . . . . . . . . Thermal 55 | . . . . . . . . . . . 55 . . . . . . . . . . . . Explosive 567 | . 376 . . . . . . . . . . . . . . . . . . . . . 191 Electromagnetic 277 | . . . . . . . . . . . 188 . . . . . . . . . . . 89 Impact 361 | . . . . . . . . . . . 251 . 110 . . . . . . . . . . Slashing . | . . . . . . . . . . . . . . . . . . . . . . . . Piercing . | . . . . . . . . . . . . . . . . . . . . . . . . Entropic 55 | . . . . . . . . . . . . . . . . . . . . . 55 . . Highest Corruption 14 | . . . . . . 1 . . . . . . . . . . . . . . . . 14 Average Corruption 4 | . . . . . . 1 . . . . . . . . . . . . . . . . 5 Corruption Purged . | . . . . . . . . . . . . . . . . . . . . . . . . Corruption Blocked 77 | . . . . . . . . . . . . . . . . . . . . . 50 . 27 Effects 11 | . . . . . . 2 . . . . . . . . . . . . . . . . 9 Message Errors 3 | . . . . . . 1 . . . . . . . . . . . . . . . . 2 Matter Fused 2 | . . . . . . . . . . . . . . . . . . . . . . . 2 Parts Rejected 1 | . . . . . . . . . . . . . . . . . . . . . . . 1 Data Loss (minor) 2 | . . . . . . 1 . . . . . . . . . . . . . . . . 1 Data Loss (major) 1 | . . . . . . . . . . . . . . . . . . . . . . . 1 Alerts 1 | . . . . . . . . . . . . . . . . . . . . . . . 1 Misdirections 1 | . . . . . . . . . . . . . . . . . . . . . . . 1 Overload Shots . | . . . . . . . . . . . . . . . . . . . . . . . . Overflow Damage 413 | . . . . . . . . . . . 222 . 148 . . . . . . . . . 43 Projectiles 38 | . . . . . . . . . . . . . 38 . . . . . . . . . . Explosions 45 | . . . . . . . . . . . 2 . . . . . . . . . . . 43 Melee 330 | . . . . . . . . . . . 220 . 110 . . . . . . . . . . Knockbacks 1 | . . . . . 1 . . . . . . . . . . . . . . . . . . Impact 1 | . . . . . 1 . . . . . . . . . . . . . . . . . . Kinetic . | . . . . . . . . . . . . . . . . . . . . . . . . Secondary . | . . . . . . . . . . . . . . . . . . . . . . . . Self-Inflicted Damage 135 | 3 29 . 6 . 5 . . . . . . . . . . . . . . . . . 92 Shots 5 | . 1 . . . . . . . . . . . . . . . . . . . . . 4 Rammed 10 | 2 . . 5 . 2 1 . . . . . . . . . . . . . . . . . Targets Rammed 10 | 2 . . 5 . 2 1 . . . . . . . . . . . . . . . . . Kicked . | . . . . . . . . . . . . . . . . . . . . . . . . Crushed . | . . . . . . . . . . . . . . . . . . . . . . . . Highest Temperature 328 | . . . . . . . . . . . . . 2 106 . . . 74 76 176 313 5 328 Average Temperature 88 | . . . . . . . . . . . . . 2 56 . . . 38 37 80 128 3 99 Received Heat Transfer 535 | . 24 9 93 . . 126 . 16 . . 9 . . 21 . . . . . . 21 18 198 Siege Activations . | . . . . . . . . . . . . . . . . . . . . . . . . Robots Corrupted 1 | . . . . . . . . . . . . . . . . . . . . . . . 1 Combat Hostiles . | . . . . . . . . . . . . . . . . . . . . . . . . Parts Fried 4 | . . . . . . . . . . . 1 . . . . . . . . . . . 3 Impact Corruptions 18 | . . . . . . . . . . . 14 . 4 . . . . . . . . . . Robots Melted . | . . . . . . . . . . . . . . . . . . . . . . . . Combat Hostiles . | . . . . . . . . . . . . . . . . . . . . . . . . Parts Melted . | . . . . . . . . . . . . . . . . . . . . . . . . Heat Transferred . | . . . . . . . . . . . . . . . . . . . . . . . . Parts Sabotaged . | . . . . . . . . . . . . . . . . . . . . . . . . Parts Stolen . | . . . . . . . . . . . . . . . . . . . . . . . . Parts Stripped . | . . . . . . . . . . . . . . . . . . . . . . . . Power Chain Reactions 1 | . . . . . . . . . . . 1 . . . . . . . . . . . . Missiles Intercepted . | . . . . . . . . . . . . . . . . . . . . . . . . Alert | -11 -10 -9 -9 -9 -8 -8 -7 -7 -6 -5 -5 -5 -5 -4 -4 -4 -4 -4 -3 -3 -2 -1 -1 ------- Run | Jun Mat Mat Min Exi Min Mat Fac DSF Fac Fac Upp Upp Zhi Pro Fac Upp Upp War Pro Res Res Acc Com Peak Influence 548 | . 212 104 75 . 30 176 86 63 53 51 . . . . 108 . . . . 346 548 367 495 Initial 328 | . . 89 40 . . 11 86 63 19 25 . . . . 25 . . . . 300 194 328 234 Average 205 | . 79 92 51 . 1 75 86 40 25 40 . . . . 68 . . . . 323 379 348 266 Maximum Alert Level 2 | . 1 . . . . . . . . . . . . . . . . . . 1 2 1 2 Low Security (%) 54 | 100 95 100 100 . 100 100 100 100 100 100 . . . . 100 . . . . . 2 . 39 Level 1 31 | . 4 . . . . . . . . . . . . . . . . . . 100 38 100 43 Level 2 14 | . . . . . . . . . . . . . . . . . . . . . 59 . 17 Level 3 . | . . . . . . . . . . . . . . . . . . . . . . . . Level 4 . | . . . . . . . . . . . . . . . . . . . . . . . . Level 5 . | . . . . . . . . . . . . . . . . . . . . . . . . High Security . | . . . . . . . . . . . . . . . . . . . . . . . . Max Security . | . . . . . . . . . . . . . . . . . . . . . . . . Squads Dispatched 12 | . . . . . . . . . 1 2 . . . . . . . . . . 2 . 7 Investigation 3 | . . . . . . . . . . 2 . . . . . . . . . . 1 . . Extermination 2 | . . . . . . . . . . . . . . . . . . . . . . . 2 Reinforcement 7 | . . . . . . . . . 1 . . . . . . . . . . . 1 . 5 Assault . | . . . . . . . . . . . . . . . . . . . . . . . . Garrison . | . . . . . . . . . . . . . . . . . . . . . . . . Intercept . | . . . . . . . . . . . . . . . . . . . . . . . . Searches Triggered 1 | . . . . . . . . . . . . . . . . . . . . . . . 1 Construction Impeded . | . . . . . . . . . . . . . . . . . . . . . . . . Haulers Reinforced 1 | . . . . . . . . . . . . . . . . . . . . . 1 . . Active Scanning Responses . | . . . . . . . . . . . . . . . . . . . . . . . . Cargo Convoy Interrupts . | . . . . . . . . . . . . . . . . . . . . . . . . Stealth | -11 -10 -9 -9 -9 -8 -8 -7 -7 -6 -5 -5 -5 -5 -4 -4 -4 -4 -4 -3 -3 -2 -1 -1 --------- Run | Jun Mat Mat Min Exi Min Mat Fac DSF Fac Fac Upp Upp Zhi Pro Fac Upp Upp War Pro Res Res Acc Com Distress Signals 10 | . . 1 . . . 1 . . . . . . . . . . . 1 . . 3 1 3 Communications Jammed . | . . . . . . . . . . . . . . . . . . . . . . . . Distress Signals . | . . . . . . . . . . . . . . . . . . . . . . . . Times Spotted 204 | . 10 4 6 . 3 17 . 3 5 1 15 . . 9 15 . 4 11 7 2 24 7 61 Peak Tracking Total 13 | . 5 8 3 . 3 11 . 2 4 1 5 . . 9 11 . 4 8 7 2 11 8 13 Tactical Retreats 30 | . . . 1 . 1 4 . 1 . . 3 . . 2 1 . 2 . . . 5 . 10 Traps | -11 -10 -9 -9 -9 -8 -8 -7 -7 -6 -5 -5 -5 -5 -4 -4 -4 -4 -4 -3 -3 -2 -1 -1 ------- Run | Jun Mat Mat Min Exi Min Mat Fac DSF Fac Fac Upp Upp Zhi Pro Fac Upp Upp War Pro Res Res Acc Com Traps Triggered 5 | . . . . . . 3 . 2 . . . . . . . . . . . . . . . Indirectly . | . . . . . . . . . . . . . . . . . . . . . . . . Trap Hack Attempts . | . . . . . . . . . . . . . . . . . . . . . . . . Triggered . | . . . . . . . . . . . . . . . . . . . . . . . . Disarmed . | . . . . . . . . . . . . . . . . . . . . . . . . Reprogrammed 4 | . . . . . . . . . . . . . . . . . . . . . . . 4 Reused . | . . . . . . . . . . . . . . . . . . . . . . . . Traps Extracted . | . . . . . . . . . . . . . . . . . . . . . . . . Installed . | . . . . . . . . . . . . . . . . . . . . . . . . Triggered 9 | . . . . . . . . . . . 3 . . . . . 2 4 . . . . . Machines | -11 -10 -9 -9 -9 -8 -8 -7 -7 -6 -5 -5 -5 -5 -4 -4 -4 -4 -4 -3 -3 -2 -1 -1 ---------- Run | Jun Mat Mat Min Exi Min Mat Fac DSF Fac Fac Upp Upp Zhi Pro Fac Upp Upp War Pro Res Res Acc Com Machines Disabled 7 | . 2 . . . . . . . . . . . . . . . . 1 . . . . 4 Max in Single Turn 2 | . 1 . . . . . . . . . . . . . . . . 1 . . . . 2 Phase Generator 1 | . . . . . . . . . . . . . . . . . . . . . . . 1 Machines Repaired . | . . . . . . . . . . . . . . . . . . . . . . . . Machines Sabotaged . | . . . . . . . . . . . . . . . . . . . . . . . . Overloaded Fab Kills . | . . . . . . . . . . . . . . . . . . . . . . . . Hacking | -11 -10 -9 -9 -9 -8 -8 -7 -7 -6 -5 -5 -5 -5 -4 -4 -4 -4 -4 -3 -3 -2 -1 -1 --------- Run | Jun Mat Mat Min Exi Min Mat Fac DSF Fac Fac Upp Upp Zhi Pro Fac Upp Upp War Pro Res Res Acc Com Machines Accessed 26 | . . . . 1 . . 1 . 1 3 . . 2 . 1 . . 3 . 1 1 4 8 Terminals 19 | . . . . . . . 1 . 1 2 . . . . 1 . . . . 1 1 4 8 Fabricators 1 | . . . . . . . . . . 1 . . . . . . . . . . . . . Repair Stations . | . . . . . . . . . . . . . . . . . . . . . . . . Recycling Units . | . . . . . . . . . . . . . . . . . . . . . . . . Scanalyzers . | . . . . . . . . . . . . . . . . . . . . . . . . Garrison Access . | . . . . . . . . . . . . . . . . . . . . . . . . Total Hacks 53 | . . . . 1 . . 1 . 1 8 . . 9 . 1 . . 4 . 2 2 5 19 Successful 41 | . . . . 1 . . 1 . 1 4 . . 9 . 1 . . 4 . 2 . 5 13 Failed 11 | . . . . . . . . . . 4 . . . . . . . . . . 2 . 5 Catastrophic 1 | . . . . . . . . . . . . . . . . . . . . . 1 . . Database Lockouts 1 | . . . . . . . . . . . . . . . . . . . . . . . 1 Manual 11 | . . . . 1 . . . . 1 . . . . . 1 . . . . 2 1 . 5 Terminals 38 | . . . . . . . 1 . 1 7 . . . . 1 . . . . 2 2 5 19 Fabricators 1 | . . . . . . . . . . 1 . . . . . . . . . . . . . Repair Stations . | . . . . . . . . . . . . . . . . . . . . . . . . Recycling Units . | . . . . . . . . . . . . . . . . . . . . . . . . Scanalyzers . | . . . . . . . . . . . . . . . . . . . . . . . . Garrison Access . | . . . . . . . . . . . . . . . . . . . . . . . . Terminal Hacks 40 | . . . . 1 . . 1 . 1 3 . . 9 . 1 . . 4 . 2 . 5 13 Record 9 | . . . . . . . . . . . . . 5 . . . . 2 . . . . 2 Part Schematic 3 | . . . . . . . . . . 1 . . . . . . . . . . . . 2 Robot Schematic 1 | . . . . . . . . . . . . . . . . . . . . . . . 1 Robot Analysis 7 | . . . . . . . . . . 1 . . 4 . . . . . . . . 1 1 Open Door 6 | . . . . . . . . . . . . . . . . . . 2 . . . 3 1 Open DSF 1 | . . . . . . . 1 . . . . . . . . . . . . . . . . Level Access Points 2 | . . . . . . . . . 1 . . . . . . . . . . 1 . . . Branch Access Points 4 | . . . . . . . . . . 1 . . . . 1 . . . . 1 . 1 . Emergency Access Points 1 | . . . . . . . . . . . . . . . . . . . . . . . 1 Terminal Index 1 | . . . . . . . . . . . . . . . . . . . . . . . 1 Reprogram Traps 1 | . . . . . . . . . . . . . . . . . . . . . . . 1 Recall Reinforcements 1 | . . . . . . . . . . . . . . . . . . . . . . . 1 EX-Prototype ID Bank 1 | . . . . 1 . . . . . . . . . . . . . . . . . . . Disengage Seal 2 | . . . . . . . . . . . . . . . . . . . . . . . 2 Fabricator Hacks 1 | . . . . . . . . . . 1 . . . . . . . . . . . . . Network Status 1 | . . . . . . . . . . 1 . . . . . . . . . . . . . Repair Station Hacks . | . . . . . . . . . . . . . . . . . . . . . . . . Recycling Unit Hacks . | . . . . . . . . . . . . . . . . . . . . . . . . Scanalyzer . | . . . . . . . . . . . . . . . . . . . . . . . . Garrison Access Hacks . | . . . . . . . . . . . . . . . . . . . . . . . . Unauthorized Hacks . | . . . . . . . . . . . . . . . . . . . . . . . . Terminals . | . . . . . . . . . . . . . . . . . . . . . . . . Fabricators . | . . . . . . . . . . . . . . . . . . . . . . . . Repair Stations . | . . . . . . . . . . . . . . . . . . . . . . . . Recycling Units . | . . . . . . . . . . . . . . . . . . . . . . . . Scanalyzers . | . . . . . . . . . . . . . . . . . . . . . . . . Garrison Access . | . . . . . . . . . . . . . . . . . . . . . . . . Data Cores Recovered . | . . . . . . . . . . . . . . . . . . . . . . . . Used . | . . . . . . . . . . . . . . . . . . . . . . . . Hacking Detections 10 | . . . . . . . . . . 3 . . . . 1 . . . . . 1 . 5 Full Trace Events 3 | . . . . . . . . . . 2 . . . . . . . . . . 1 . . Feedback Events . | . . . . . . . . . . . . . . . . . . . . . . . . Feedback Blocked . | . . . . . . . . . . . . . . . . . . . . . . . . Robot Schematics Acquired 1 | . . . . . . . . . . . . . . . . . . . . . . . 1 Robots Built . | . . . . . . . . . . . . . . . . . . . . . . . . Authchips . | . . . . . . . . . . . . . . . . . . . . . . . . Time . | . . . . . . . . . . . . . . . . . . . . . . . . Total Robot Build Rating . | . . . . . . . . . . . . . . . . . . . . . . . . Part Schematics Acquired 3 | . . . . . . . . . . 1 . . . . . . . . . . . . 2 Parts Built . | . . . . . . . . . . . . . . . . . . . . . . . . Authchips . | . . . . . . . . . . . . . . . . . . . . . . . . Time . | . . . . . . . . . . . . . . . . . . . . . . . . Total Part Build Rating . | . . . . . . . . . . . . . . . . . . . . . . . . Parts Repaired . | . . . . . . . . . . . . . . . . . . . . . . . . Time . | . . . . . . . . . . . . . . . . . . . . . . . . Parts Recycled . | . . . . . . . . . . . . . . . . . . . . . . . . Recycled Matter . | . . . . . . . . . . . . . . . . . . . . . . . . Retrieved Matter . | . . . . . . . . . . . . . . . . . . . . . . . . Retrieved Components . | . . . . . . . . . . . . . . . . . . . . . . . . Parts Scanalyzed . | . . . . . . . . . . . . . . . . . . . . . . . . Part Schematics Acquired . | . . . . . . . . . . . . . . . . . . . . . . . . Parts Damaged . | . . . . . . . . . . . . . . . . . . . . . . . . Bothacking | -11 -10 -9 -9 -9 -8 -8 -7 -7 -6 -5 -5 -5 -5 -4 -4 -4 -4 -4 -3 -3 -2 -1 -1 ------------ Run | Jun Mat Mat Min Exi Min Mat Fac DSF Fac Fac Upp Upp Zhi Pro Fac Upp Upp War Pro Res Res Acc Com Used RIF Installer . | . . . . . . . . . . . . . . . . . . . . . . . . Robots Hacked . | . . . . . . . . . . . . . . . . . . . . . . . . Non-combat . | . . . . . . . . . . . . . . . . . . . . . . . . Combat . | . . . . . . . . . . . . . . . . . . . . . . . . Robot Hacks Applied . | . . . . . . . . . . . . . . . . . . . . . . . . Relay Couplers Released . | . . . . . . . . . . . . . . . . . . . . . . . . Fabnet Peak Effective % . | . . . . . . . . . . . . . . . . . . . . . . . . Robots Rewired . | . . . . . . . . . . . . . . . . . . . . . . . . Allies Hacked . | . . . . . . . . . . . . . . . . . . . . . . . . Hacks Repelled . | . . . . . . . . . . . . . . . . . . . . . . . . Allies | -11 -10 -9 -9 -9 -8 -8 -7 -7 -6 -5 -5 -5 -5 -4 -4 -4 -4 -4 -3 -3 -2 -1 -1 -------- Run | Jun Mat Mat Min Exi Min Mat Fac DSF Fac Fac Upp Upp Zhi Pro Fac Upp Upp War Pro Res Res Acc Com Total Allies . | . . . . . . . . . . . . . . . . . . . . . . . . Largest Group . | . . . . . . . . . . . . . . . . . . . . . . . . Highest-Rated Group . | . . . . . . . . . . . . . . . . . . . . . . . . Highest-Rated Ally . | . . . . . . . . . . . . . . . . . . . . . . . . Total Orders . | . . . . . . . . . . . . . . . . . . . . . . . . Ally Attacks . | . . . . . . . . . . . . . . . . . . . . . . . . Total Damage . | . . . . . . . . . . . . . . . . . . . . . . . . Kills . | . . . . . . . . . . . . . . . . . . . . . . . . Allies Corrupted . | . . . . . . . . . . . . . . . . . . . . . . . . Allies Melted 1 | . . . . . . . . . . . . . . . . . . . . . 1 . . Intel | -11 -10 -9 -9 -9 -8 -8 -7 -7 -6 -5 -5 -5 -5 -4 -4 -4 -4 -4 -3 -3 -2 -1 -1 ------- Run | Jun Mat Mat Min Exi Min Mat Fac DSF Fac Fac Upp Upp Zhi Pro Fac Upp Upp War Pro Res Res Acc Com Robot Analysis Total 7 | . . . . . . . . . . 1 . . 4 . . . . . . . . 1 1 Derelict Logs Recovered 4 | . . . . . . . . . . . . 1 . 2 . 1 . . . . . . . Drone Launches . | . . . . . . . . . . . . . . . . . . . . . . . . Drone Recoveries . | . . . . . . . . . . . . . . . . . . . . . . . . Exploration | -11 -10 -9 -9 -9 -8 -8 -7 -7 -6 -5 -5 -5 -5 -4 -4 -4 -4 -4 -3 -3 -2 -1 -1 ------------- Run | Jun Mat Mat Min Exi Min Mat Fac DSF Fac Fac Upp Upp Zhi Pro Fac Upp Upp War Pro Res Res Acc Com Turns Passed 2688 | 55 98 19 57 112 45 136 1 65 29 69 131 101 55 88 76 59 64 208 42 51 176 61 890 Spaces Moved 7170 | 56 157 38 103 212 85 290 3 130 71 204 343 324 146 312 273 215 236 707 209 225 704 260 1867 Core 821 | 36 157 38 103 212 85 176 . 7 . . . . . . . . . . . . . . 7 Treads 20 | 20 . . . . . . . . . . . . . . . . . . . . . . . Legs . | . . . . . . . . . . . . . . . . . . . . . . . . Wheels . | . . . . . . . . . . . . . . . . . . . . . . . . Hover . | . . . . . . . . . . . . . . . . . . . . . . . . Flight 6329 | . . . . . . 114 3 123 71 204 343 324 146 312 273 215 236 707 209 225 704 260 1860 Fastest Speed 14 | 50 50 50 50 50 50 29 29 29 31 28 28 31 23 16 25 27 27 20 20 19 14 20 15 Average Speed 28 | 89 50 50 50 50 50 42 29 34 32 30 29 31 27 23 25 27 27 24 20 19 20 21 27 Slowest Speed 160 | 160 50 50 50 50 50 50 29 100 37 31 31 31 31 28 27 27 27 27 20 20 22 22 50 Overloaded Moves 20 | . . . . . . . . . . . . . . 20 . . . . . . . . . Propulsion Burnouts . | . . . . . . . . . . . . . . . . . . . . . . . . Robots Hopped 82 | . . . . . . 7 . 2 2 2 2 4 . 1 5 . 2 . . 3 15 6 31 Cave-ins Triggered 1 | . . . . . . . . . . . . . . . . . . . . . . . 1 Exploration Rate (%) 37 | 3 45 8 30 61 35 38 . 96 2 7 54 47 60 60 9 44 47 89 42 7 24 9 38 Regions Visited 23 Branch Regions 12 Pre-discovered Areas 3 | . . . . . . . . . . . . . 3 . . . . . . . . . . Known Exits Taken 6 | . . . . . . . 1 . 1 1 . . . . 1 . . . . 1 . 1 . Unknown Exits Taken 16 | 1 1 1 1 1 1 1 . . . . 1 1 1 1 . 1 1 1 1 . 1 . . Scrap Searched 6 | . . . 1 . . . . . . . 1 1 . 1 . 2 . . . . . . . Spaces Dug 39 | . 4 . . . . . . . . 1 . . . 4 2 . . . . . 3 . 25 Terrain Destroyed 109 | . 7 . . . . . . . . 1 6 . . 4 2 . . . . . 3 . 86 Melee 7 | . . . . . . . . . . 1 . . . 4 2 . . . . . . . . Projectile 3 | . . . . . . . . . . . . . . . . . . . . . 3 . . AOE 99 | . 7 . . . . . . . . . 6 . . . . . . . . . . . 86 Terrain Rammed . | . . . . . . . . . . . . . . . . . . . . . . . . Walls Destroyed . | . . . . . . . . . . . . . . . . . . . . . . . . Machines Disabled . | . . . . . . . . . . . . . . . . . . . . . . . . Actions | -11 -10 -9 -9 -9 -8 -8 -7 -7 -6 -5 -5 -5 -5 -4 -4 -4 -4 -4 -3 -3 -2 -1 -1 --------- Run | Jun Mat Mat Min Exi Min Mat Fac DSF Fac Fac Upp Upp Zhi Pro Fac Upp Upp War Pro Res Res Acc Com Total 7599 | 59 171 37 107 218 86 293 2 145 73 205 360 319 156 316 270 215 233 728 208 227 717 257 2197 Wait 330 | . . . . . . 4 . . . . 11 . . . . . . . . . 10 . 305 Move 6994 | 56 156 37 102 211 84 275 2 125 66 199 338 315 145 309 262 214 232 706 208 218 677 247 1810 Hop 71 | . . . . . . 7 . 2 2 2 2 4 . 1 5 . 1 . . 3 11 6 25 Pick Up 23 | . 5 . . . . . . . 2 . . . 3 . . 1 . 1 . 1 1 1 8 Fast Attach 63 | 2 1 . . 1 . 6 . 5 1 1 . . 5 . 1 . . 8 . 3 8 1 20 Attach 26 | . 2 . . 2 . . . 2 2 1 1 . . 2 . . . 1 . 1 . . 12 Detach 10 | . 2 . . 2 . . . . . 1 1 . . . . . . 1 . . . . 3 Swap 3 | . . . . . . . . . . . . . . . . . . 1 . . 1 1 . Drop 15 | . . . . 2 . . . . . . . . 2 . . . . 3 . 1 5 1 1 Fire 33 | . 5 . . . . . . . . . 5 . . . . . . 7 . . 4 . 12 Melee 10 | . . . . . . . . . . 1 2 . 1 4 2 . . . . . . . . Ram 9 | 1 . . 5 . 2 1 . . . . . . . . . . . . . . . . . Kick . | . . . . . . . . . . . . . . . . . . . . . . . . Crush . | . . . . . . . . . . . . . . . . . . . . . . . . Escape Stasis 12 | . . . . . . . . 11 . . . . . . . . . . . . . . 1 Rewire . | . . . . . . . . . . . . . . . . . . . . . . . . Trap . | . . . . . . . . . . . . . . . . . . . . . . . . Miscellaneous . | . . . . . . . . . . . . . . . . . . . . . . . . Route ------- -11/Junkyard -10/Materials (discovered 2 exits: [*Mat x2]) -9/Materials -9/Mines (discovered 3 exits: [*Mat x2] / *Exi) -9/Exiles -8/Mines -8/Materials -7/Factory -7/DSF -6/Factory (discovered 4 exits: *Fac x4) -5/Factory (discovered 4 exits: *Upp x2 / Ext x2) -5/Upper Caves -5/Upper Caves -5/Zhirov -4/Proximity Caves -4/Factory (discovered 3 exits: *Upp x2 / Arm) -4/Upper Caves -4/Upper Caves -4/Warlord -3/Proximity Caves -3/Research (discovered 5 exits: *Res x3 / Tes x2) -2/Research (discovered 2 exits: *Acc / [*Qua]) -1/Access -1/Command History --------- Turn | Location | Event 3 | -11/Junkyard | Discovered new exit (range 15) 56 | -11/Junkyard | Entered Materials 113 | -10/Materials | Discovered new exit (range 12) 150 | -10/Materials | Discovered new exit (range 9) 154 | -10/Materials | Entered another Materials area 154 | -9/Materials | Evolved 2 slots: Propulsion x2 166 | -9/Materials | Discovered new exit (range 15) 173 | -9/Materials | Entered Mines 177 | -9/Mines | Discovered new exit (range 5) 207 | -9/Mines | Discovered new exit (range 9) 227 | -9/Mines | Deemed a non-threat by the Exiles lab entrance 228 | -9/Mines | Discovered new exit (range 5) 230 | -9/Mines | Entered Exiles 242 | -9/Exiles | Met 8R-AWN 252 | -9/Exiles | Met EX-HEX 266 | -9/Exiles | Met EX-BIN 272 | -9/Exiles | Aligned with FarCom system 273 | -9/Exiles | Given EX-Vault access code 284 | -9/Exiles | Opened EX-Vault 294 | -9/Exiles | Found PSU Rigger 306 | -9/Exiles | Warned to stay clear of 0b10 Research branches 315 | -9/Exiles | Build established: Mutant 320 | -9/Exiles | Met EX-DEC 338 | -9/Exiles | Discovered new exit (range 10) 342 | -9/Exiles | Left Exiles lab with PSU Rigger 342 | -9/Exiles | Entered Mines 384 | -8/Mines | Discovered new exit (range 6) 387 | -8/Mines | Entered Materials 387 | -8/Materials | Evolved 2 slots: Propulsion x1, Utility x1 448 | -8/Materials | Core integrity fell below 50% 519 | -8/Materials | Core integrity fell below 20% 522 | -8/Materials | Discovered new exit (range 6) 523 | -8/Materials | Entered Factory 523 | -7/Factory | Evolved 2 slots: Utility x2 524 | -7/Factory | Identified exit to DSF 524 | -7/Factory | Entered DSF 547 | -7/DSF | Additional patrols routed to DSF 547 | -7/DSF | Discovered new exit (range 15) 582 | -7/DSF | Lost 4 parts (3n1u) 589 | -7/DSF | Entered Factory 589 | -6/Factory | Evolved 2 slots: Propulsion x1, Utility x1 607 | -6/Factory | Identified exit to Factory 618 | -6/Factory | Entered another Factory area 618 | -5/Factory | Evolved 2 slots: Propulsion x1, Utility x1 642 | -5/Factory | Identified exit to Upper Caves 642 | -5/Factory | Identified exit to Extension 687 | -5/Factory | Entered Upper Caves 816 | -5/Upper Caves | Discovered new exit (range 10) 818 | -5/Upper Caves | Entered another Upper Caves area 824 | -5/Upper Caves | Learned Factory terminal intel 869 | -5/Upper Caves | Build established: Hacker-Sprinter 917 | -5/Upper Caves | Discovered new exit (range 4) 919 | -5/Upper Caves | Entered Zhirov 919 | -5/Zhirov | Discovered new exit (range 4) 925 | -5/Zhirov | Met Zhirov 931 | -5/Zhirov | Learned location of Quarantine (-2) 931 | -5/Zhirov | Learned location of Testing (-3) 931 | -5/Zhirov | Learned location of Command (-1) 933 | -5/Zhirov | Zhirov requested help retrieving the SGEMP Prototype 937 | -5/Zhirov | Found Alien Artifact 937 | -5/Zhirov | Identified Integrated Reactor 937 | -5/Zhirov | Installed Integrated Reactor, increased core energy generation (+10) 942 | -5/Zhirov | Found Alien Artifact 974 | -5/Zhirov | Entered Proximity Caves 983 | -4/Proximity Caves | Attracted the attention of an 0b10 checkpoint 998 | -4/Proximity Caves | Learned Research stockpile data 1018 | -4/Proximity Caves | Learned location of 1 exit from Research 1044 | -4/Proximity Caves | Lost 5 parts (1p2n2u) 1061 | -4/Proximity Caves | Discovered new exit (range 6) 1062 | -4/Proximity Caves | Entered Factory 1062 | -4/Factory | Evolved 2 slots: Propulsion x1, Utility x1 1063 | -4/Factory | Loaded intel: 25 terminal locations 1071 | -4/Factory | Identified exit to Upper Caves 1071 | -4/Factory | Identified exit to Armory 1138 | -4/Factory | Entered Upper Caves 1148 | -4/Upper Caves | Learned 4 Research zone layouts 1194 | -4/Upper Caves | Discovered new exit (range 12) 1197 | -4/Upper Caves | Entered another Upper Caves area 1258 | -4/Upper Caves | Discovered new exit (range 13) 1261 | -4/Upper Caves | Entered Warlord 1310 | -4/Warlord | Visited the Vortex Lab 1311 | -4/Warlord | Found Prototype Energy Gun 1321 | -4/Warlord | Warlord's base attacked by MAIN.C 1327 | -4/Warlord | Identified Vortex Rifle 1407 | -4/Warlord | Met Warlord 1423 | -4/Warlord | Found Prototype Processor 1423 | -4/Warlord | Identified Exp. Armor Integrity Analyzer 1424 | -4/Warlord | Found Prototype Device 1424 | -4/Warlord | Identified System Purifier 1429 | -4/Warlord | Found Prototype Device 1429 | -4/Warlord | Identified Exp. Cloaking Device 1464 | -4/Warlord | Opened side exit 1468 | -4/Warlord | Discovered new exit (range 10) 1469 | -4/Warlord | Entered Proximity Caves 1499 | -3/Proximity Caves | Attracted the attention of an 0b10 checkpoint 1505 | -3/Proximity Caves | Spotter reported a threat 1505 | -3/Proximity Caves | Spotter reported a threat 1510 | -3/Proximity Caves | Discovered new exit (range 6) 1511 | -3/Proximity Caves | Entered Research 1511 | -3/Research | Evolved 2 slots: Propulsion x1, Utility x1 1512 | -3/Research | Identified exit to Research 1523 | -3/Research | Spotted B-86 Titan 1527 | -3/Research | Identified exit to Testing 1562 | -3/Research | Entered another Research area 1562 | -2/Research | Warlord forces began assault on 0b10 1562 | -2/Research | Evolved 2 slots: Propulsion x1, Utility x1 1643 | -2/Research | Spotted B-90 Cyclops 1655 | -2/Research | Met up with Warlord 1663 | -2/Research | Spotted B-90 Cyclops 1672 | -2/Research | Research machine network offline 1673 | -2/Research | Spotted B-90 Cyclops 1688 | -2/Research | Found Prototype Device 1688 | -2/Research | Identified Exp. Thermal Shield 1721 | -2/Research | Spotted B-90 Cyclops 1723 | -2/Research | Destroyed B-90 Cyclops 1726 | -2/Research | Discovered new exit (range 12) 1735 | -2/Research | Discovered new exit (range 16) 1738 | -2/Research | Entered Access 1738 | -1/Access | Evolved 2 slots: Propulsion x1, Utility x1 1785 | -1/Access | Identified exit to Command 1799 | -1/Access | Entered Command 1847 | -1/Command | Central database locked down 1849 | -1/Command | Identified Transdimensional Reconstructor 1849 | -1/Command | Failed to warp due to unstable space 1933 | -1/Command | Build established: Wizard-Sprinter 1944 | -1/Command | Disengaged cave seal 1947 | -1/Command | Welcomed Warlord to Command 1955 | -1/Command | Lost 8 parts (2p3n1u2w) 2049 | -1/Command | Search patrols dispatched 2280 | -1/Command | Warlord commented on Warlord statues 2315 | -1/Command | Spotted M Guard 2315 | -1/Command | Spotted M Guard 2315 | -1/Command | Spotted Combat Programmer 2358 | -1/Command | Spotted Combat Programmer 2370 | -1/Command | Met MAIN.C 2395 | -1/Command | Core integrity fell below 50% 2409 | -1/Command | Found Prototype Processor 2409 | -1/Command | Identified Exp. Signal Interpreter 2428 | -1/Command | Combat Programmer assimilated allied 8C-RQS(l) 2430 | -1/Command | Disengaged cave seal 2440 | -1/Command | Lost 17 parts (2p11n3u1w) 2557 | -1/Command | Found Fusion Bomb Launcher 2597 | -1/Command | Phase Generator disabled 2600 | -1/Command | Crushed by falling debris 2601 | -1/Command | System corruption reached 10% 2623 | -1/Command | Core integrity fell below 20% 2631 | -1/Command | Lost 4 parts (3n1u) 2661 | -1/Command | 0b10 Conduit disabled 2689 | -1/Command | Destroyed by MAIN.C with High-powered Disruptor Cannon Last Messages --------------- 02600_ System corrupted by crushing effect (+3). 02600_ Nuclear Pulse Thruster destroyed. 02600_ System corrupted by crushing effect (+3). 02602_ Acquired Nuclear Pulse Thruster. 02604_ The unstable cave ceiling collapses. 02604_ Acquired 29 matter. 02604_ Acquired 17 matter. 02608_ The unstable cave ceiling collapses. 02622_ 7QZUGAF0VSQGZVU3,JD=FFOGKTPLQSOR:ECWV 02622_ K-01 Serf destroyed. 02622_ Repair Station disabled. 02641_ The unstable cave ceiling collapses. 02652_ System corrupted: Component data lost. 02664_ Nuclear Pulse Thruster destroyed. 02668_ Exp. Cloaking Device destroyed. 02670_ System corrupted: IFF burst signal emitted. 02671_ Fusion Bomb Launcher destroyed. 02685_ Xenon Bombardment Thruster destroyed. 02685_ Door malfunctions. 02689_ Exp. Signal Interpreter destroyed. Map ----- +----------------------------------------------------+ | ?????????????????????????????????????????????????? | | ?????????????????????????????????????????????????? | | ?????????????????????????????????????????????????? | | ?????????????????????????????????????????????????? | | ?????????????????????????????????????????????????? | | ?????????????????????????????????????????????????? | | ?????????????????????????????????????????????????? | | ?????????????????????????????????????????????????? | | ?????????????????????????????????????????????????? | | ?????????????????????????????????????????????????? | | ?????????????????????????????????????????????????? | | ?????????????????????????????????????????????????? | | ?????????????????????????????????????????????????? | | ?????????????????????????????????????????????????? | | ?????????????????????????????????????????????????? | | ?????????????????????????????????????????????????? | | ????????????????##############???????????????????? | | ??????????????? """" #???????????????????? | | ?????????????? "" #???????????????????? | | ?????????????? "" ##################### | | ????????""""?"""""" / | | ????????? " """ / | | ???????#"" """""" / p | | ???????#"" """""" ################### | | ???????# " """""" #?????????????????# | | ???????# " "" @ #?????????????????# | | ???????# " "MMM #?????????????????# | | ???????#"""""""""MMM """""""#?????????????????#++ | | ???????# " MMM"""""""""#?????????????????# | | ???????# """"""""""#?????????????????# | | ???????# " " " " #?????????????????# | | ???????# " " " #?????????????????# | | ???????" " " """" " #?????????????????# | | ???????" " " " """"???????????????????# | | ???????" " " "?????????????????????### | | ???????# """""" " ??????????????????????? | | ???????# " " """"""??????????????????????? | | ???????# " " " ??????????????????????????? | | ???????#################?????????????????????????? | | ?????????????????????????????????????????????????? | | ?????????????????????????????????????????????????? | | ?????????????????????????????????????????????????? | | ?????????????????????????????????????????????????? | | ?????????????????????????????????????????????????? | | ?????????????????????????????????????????????????? | | ?????????????????????????????????????????????????? | | ?????????????????????????????????????????????????? | | ?????????????????????????????????????????????????? | | ?????????????????????????????????????????????????? | | ?????????????????????????????????????????????????? | +----------------------------------------------------+ Best States ------------- Heat Dissipation 52 Energy Generation 38 Energy Capacity 340 Matter Stores 300 Matter Capacity 300 Sight Range 16 Terrain Scan Density 10 Cloak Strength 4 Power Amplification 30 Armor Coverage 225 Resistance: TH 30 Propulsion Shielding 66 Evasion (%) 66 Armor Integrity Analysis 50 Recoil Reduction 2 Offensive Hacking 88 Defensive Hacking 24 Item Schematics ----------------- Q-thruster | -5/Factory | Hacked Quantum Reactor | -1/Command | Hacked Biometal Heavy Treads | -1/Command | Hacked Robot Schematics ------------------ A-27 Freighter | -1/Command | Hacked Fabricated ------------ Nothing Alien Tech Used ----------------- Integrated Reactor Transdimensional Reconstructor Achievements -------------- None Challenges ------------ None Game ------ Seed BurstParticleDesublimator Manual? 0 Play Time 00:49:51 Cumulative 199.8 hours Start 2023.05.11 @ 22:57:51 End 2023.05.11 @ 23:48:10 Sessions 1 Manual Loads 0 Difficulty Rogue Special Mode None Game No. 564 Rogue 564 Adventurer 0 Explorer 0 Win Type - Total 9 Types 7/0/1/1/0/0/0/0/0 Lore% 79 Gallery% 77 Achievement% 70 Wizard Run 0 Options --------- ASCII 0 Keyboard 0 Movement Numpad Keybinds 0 Fullscreen 1 Font 16/SmallcapsGlow Map View 75x55 Tactical HUD 1 Map Filters NONE Filters NONE Steam 1 RUN: 6f77ff12-308d-4790-a122-2f4e2c80a16d